fUSD/lending_fUSD_20260307
["ID","MTS","AMOUNT","RATE_DAILY","PERIOD"]
[407863927,1772842472254,166.0,0.0001642,120]
[407863929,1772842638391,500.0,8e-05,2]
[407863930,1772842638904,500.0,8e-05,2]
[407863931,1772842639383,500.0,8e-05,2]
[407863932,1772842639931,600.0,8e-05,2]
[407863933,1772842644435,514.80318033,8e-05,2]
[407863934,1772842644614,661.00917083,8e-05,2]
[407863935,1772842676068,-250.0,0.00011364,2]
[407863936,1772842676137,-250.0,0.00011364,2]
[407863937,1772842676209,-2785.85548505,0.00011364,2]
[407863938,1772842676282,-600.0,0.00011391,2]
[407863939,1772842676354,-300.0,0.00011417,2]
[407863940,1772842676429,-200.0,0.00011418,2]
[407863941,1772842676502,-28.2990299,0.00011419,2]
[407863942,1772842681922,-1171.7009701,0.00011419,2]
[407863943,1772842681987,-300.0,0.00011419,2]
[407863944,1772842682050,-2275.29792451,0.0001142,2]
[407863945,1772842682115,-500.0,0.0001142,2]
[407863946,1772842682184,-500.0,0.0001142,2]
[407863947,1772842682256,-6.01221078,0.0001142,2]
[407863948,1772842687962,-150.0,0.00011419,2]
[407863949,1772842688049,-300.0,0.00011419,2]
[407863950,1772842688122,-250.0,0.0001142,2]
[407863951,1772842688193,-493.98778922,0.0001142,2]
[407863952,1772842688270,-500.0,0.0001142,2]
[407863953,1772842688346,-500.0,0.0001142,2]
[407863954,1772842688419,-226.32936989,0.0001142,2]
[407863955,1772842688492,-500.0,0.0001142,2]
[407863956,1772842688563,-500.0,0.0001142,2]
[407863957,1772842688632,-500.0,0.0001142,2]
[407863958,1772842688699,-500.0,0.0001142,2]
[407863959,1772842688770,-500.0,0.0001142,2]
[407863961,1772842786359,1222.56242191,0.0001132,2]
[407863962,1772842801221,300.0,0.00011419,2]
[407863963,1772842801447,1200.0,0.00011419,2]
[407863964,1772842803232,243.0,0.0001142,2]
[407863965,1772842817637,1448.5564,0.00011397,2]
[407863966,1772842939914,813.56366554,8e-05,2]
[407863967,1772842943088,524.62574856,8e-05,2]
[407863968,1772842947005,1600.0,8e-05,2]
[407863969,1772842947309,1700.0,8e-05,2]
[407863970,1772842947458,1600.0,8e-05,2]
[407863971,1772842947777,1700.0,8e-05,2]
[407863972,1772842947911,1600.0,8e-05,2]
[407863973,1772842948263,1700.0,8e-05,2]
[407863974,1772842948356,1600.0,8e-05,2]
[407863975,1772842948776,1700.0,8e-05,2]
[407863976,1772842948829,1600.0,8e-05,2]
[407863977,1772842949320,1700.0,8e-05,2]
[407863978,1772842949354,1600.0,8e-05,2]
[407863979,1772842949726,1700.0,8e-05,2]
[407863980,1772842949778,1600.0,8e-05,2]
[407863981,1772842950212,1700.0,8e-05,2]
[407863982,1772842950370,1600.0,8e-05,2]
[407863983,1772842950859,1600.0,8e-05,2]
[407863984,1772842951017,1700.0,8e-05,2]
[407863985,1772842951325,1600.0,8e-05,2]
[407863986,1772842951519,1700.0,8e-05,2]
[407863987,1772842951820,1600.0,8e-05,2]
[407863988,1772842953188,1600.0,8e-05,2]
[407863989,1772842953246,1700.0,8e-05,2]
[407863990,1772842953551,1600.0,8e-05,2]
[407863991,1772842953585,1700.0,8e-05,2]
[407863992,1772842953739,2156.21961543,8e-05,2]
[407863993,1772842953775,1700.0,8e-05,2]
[407863994,1772842954058,1700.0,8e-05,2]
[407863995,1772842954484,3173.11746355,8e-05,2]
[407863996,1772842981156,10000.0,0.000103,2]
[407863997,1772842987390,193.0,0.00010331,2]
[407863998,1772843003177,-193.0,0.00010367,3]
[407863999,1772843003250,-150.0,0.00011419,2]
[407864000,1772843003324,-300.0,0.00011419,2]
[407864001,1772843003393,-1645.71036141,0.0001142,2]
[407864002,1772843041253,300.0,0.00011419,2]
[407864003,1772843041619,150.0,0.00011419,2]
[407864004,1772843043633,300.0,0.00011419,2]
[407864005,1772843051098,173.0,0.0001142,2]
[407864006,1772843099204,500.0,0.0001141,2]
[407864007,1772843101148,1200.0,0.00011419,2]
[407864009,1772843105063,165.0,0.0001142,3]
[407864011,1772843163666,150.0,0.00011367,2]
[407864012,1772843165273,157.0,0.0001142,2]
[407864013,1772843180628,309.6,0.0001142,2]
[407864014,1772843188552,500.0,0.00011356,2]
[407864015,1772843221154,300.0,0.00011419,2]
[407864016,1772843221535,150.0,0.00011419,2]
[407864017,1772843223887,298.0,0.00011419,2]
[407864018,1772843225253,157.0,0.0001142,2]
[407864019,1772843242207,500.0,8e-05,2]
[407864020,1772843243017,112.98927718,8e-05,2]
[407864021,1772843243044,387.01072282,8e-05,2]
[407864022,1772843243412,912.35466829,8e-05,2]
[407864023,1772843251125,-200.32546006,0.0001142,2]
[407864024,1772843281047,300.0,0.00011419,2]
[407864025,1772843286291,157.0,0.0001142,2]
[407864026,1772843289663,166.66,0.00010959,2]
[407864027,1772843289874,166.66,0.00011148,2]
[407864028,1772843290127,166.66,0.00011337,2]
[407864029,1772843312455,1200.0,0.00011419,2]
[407864030,1772843346761,157.0,0.0001142,2]
[407864033,1772843401261,1200.0,0.00011419,2]
[407864034,1772843402511,150.0,0.00011419,2]
[407864035,1772843403207,243.0,0.0001142,2]
[407864036,1772843405616,157.0,0.0001142,2]
[407864041,1772843431385,-299.67453994,0.0001142,2]
[407864042,1772843431395,-300.32546006,0.0001142,2]
[407864043,1772843431407,-199.67453994,0.0001142,2]
[407864044,1772843431416,-500.0,0.0001142,2]
[407864045,1772843431435,-500.0,0.0001142,2]
[407864046,1772843431446,-500.0,0.0001142,2]
[407864047,1772843431456,-500.0,0.0001142,2]
[407864048,1772843431466,-500.0,0.0001142,2]
[407864049,1772843431476,-500.0,0.0001142,2]
[407864050,1772843431486,-500.0,0.0001142,2]
[407864051,1772843431495,-500.0,0.0001142,2]
[407864053,1772843431505,-500.0,0.0001142,2]
[407864055,1772843431515,-500.0,0.0001142,2]
[407864057,1772843431524,-500.0,0.0001142,2]
[407864059,1772843431534,-500.0,0.0001142,2]
[407864061,1772843431543,-500.0,0.0001142,2]
[407864063,1772843431552,-500.0,0.0001142,2]
[407864065,1772843431562,-500.0,0.0001142,2]
[407864067,1772843431571,-500.0,0.0001142,2]
[407864069,1772843431582,-373.07221866,0.0001142,2]
[407864070,1772843431591,-500.0,0.0001142,2]
[407864071,1772843431601,-500.0,0.0001142,2]
[407864072,1772843431610,-500.0,0.0001142,2]
[407864073,1772843431620,-500.0,0.0001142,2]
[407864074,1772843431629,-500.0,0.0001142,2]
[407864075,1772843431639,-500.0,0.0001142,2]
[407864076,1772843431648,-500.0,0.0001142,2]
[407864077,1772843431658,-500.0,0.0001142,2]
[407864078,1772843431667,-500.0,0.0001142,2]
[407864079,1772843431677,-500.0,0.0001142,2]
[407864080,1772843431687,-500.0,0.0001142,2]
[407864081,1772843431697,-500.0,0.0001142,2]
[407864082,1772843431707,-500.0,0.0001142,2]
[407864083,1772843431716,-500.0,0.0001142,2]
[407864084,1772843431726,-500.0,0.0001142,2]
[407864085,1772843431736,-500.0,0.0001142,2]
[407864086,1772843431745,-500.0,0.0001142,2]
[407864087,1772843431755,-500.0,0.0001142,2]
[407864088,1772843431765,-500.0,0.0001142,2]
[407864089,1772843431775,-500.0,0.0001142,2]
[407864090,1772843431785,-500.0,0.0001142,2]
[407864091,1772843431794,-500.0,0.0001142,2]
[407864092,1772843431803,-500.0,0.0001142,2]
[407864093,1772843431813,-500.0,0.0001142,2]
[407864094,1772843431822,-500.0,0.0001142,2]
[407864095,1772843431831,-500.0,0.0001142,2]
[407864096,1772843431840,-500.0,0.0001142,2]
[407864097,1772843431850,-500.0,0.0001142,2]
[407864098,1772843431860,-500.0,0.0001142,2]
[407864099,1772843431869,-500.0,0.0001142,2]
[407864100,1772843431879,-500.0,0.0001142,2]
[407864101,1772843431889,-500.0,0.0001142,2]
[407864102,1772843431898,-500.0,0.0001142,2]
[407864103,1772843431908,-500.0,0.0001142,2]
[407864104,1772843431917,-500.0,0.0001142,2]
[407864105,1772843431926,-500.0,0.0001142,2]
[407864106,1772843431936,-1700.0,0.0001142,2]
[407864107,1772843431949,-500.0,0.0001142,2]
[407864108,1772843431959,-500.0,0.0001142,2]
[407864109,1772843431969,-1700.0,0.0001142,2]
[407864110,1772843431979,-655.89577996,0.0001142,2]
[407864111,1772843431990,-1700.0,0.0001142,2]
[407864112,1772843431999,-1600.0,0.0001142,2]
[407864113,1772843432009,-1600.0,0.0001142,2]
[407864114,1772843432018,-1600.0,0.0001142,2]
[407864115,1772843432028,-1600.0,0.0001142,2]
[407864116,1772843432037,-1600.0,0.0001142,2]
[407864117,1772843432046,-1700.0,0.0001142,2]
[407864118,1772843432056,-1600.0,0.0001142,2]
[407864119,1772843432066,-1700.0,0.0001142,2]
[407864120,1772843432075,-500.0,0.0001142,2]
[407864121,1772843432085,-1600.0,0.0001142,2]
[407864122,1772843432094,-1700.0,0.0001142,2]
[407864123,1772843432104,-1600.0,0.0001142,2]
[407864124,1772843432113,-1700.0,0.0001142,2]
[407864125,1772843432123,-1600.0,0.0001142,2]
[407864126,1772843432132,-1700.0,0.0001142,2]
[407864127,1772843432142,-1600.0,0.0001142,2]
[407864128,1772843432151,-1700.0,0.0001142,2]
[407864129,1772843432160,-1600.0,0.0001142,2]
[407864130,1772843432170,-1700.0,0.0001142,2]
[407864131,1772843432179,-1600.0,0.0001142,2]
[407864132,1772843432189,-1700.0,0.0001142,2]
[407864133,1772843432198,-1600.0,0.0001142,2]
[407864134,1772843432207,-1700.0,0.0001142,2]
[407864135,1772843432217,-1600.0,0.0001142,2]
[407864136,1772843432226,-1700.0,0.0001142,2]
[407864137,1772843432235,-1600.0,0.0001142,2]
[407864138,1772843432245,-1700.0,0.0001142,2]
[407864139,1772843432254,-500.0,0.0001142,2]
[407864140,1772843432263,-500.0,0.0001142,2]
[407864141,1772843432273,-500.0,0.0001142,2]
[407864142,1772843432283,-200.0,0.0001142,2]
[407864143,1772843432293,-518.13616109,0.00011421,2]
[407864144,1772843432302,-200.0,0.00011423,2]
[407864145,1772843432311,-352.187629,0.00011455,2]
[407864146,1772843432320,-501.74200983,0.00011473,2]
[407864147,1772843432329,-500.0,0.00011473,2]
[407864148,1772843432339,-500.0,0.00011473,2]
[407864149,1772843432348,-2722.56,0.00011507,2]
[407864150,1772843432357,-166.66,0.00011526,2]
[407864151,1772843432371,-500.0,0.00011621,2]
[407864152,1772843432381,-473.3406773,0.00011681,3]
[407864153,1772843432391,-309.6,0.00011694,2]
[407864154,1772843432400,-166.66,0.00011716,2]
[407864155,1772843432410,-1100.0,0.000118,4]
[407864156,1772843432419,-2300.0,0.000119,4]
[407864157,1772843432429,-166.66,0.00011905,2]
[407864158,1772843432439,-309.6,0.00011968,2]
[407864159,1772843432448,-1000.0,0.00012021,2]
[407864160,1772843432457,-501.72819961,0.00012021,2]
[407864161,1772843432467,-193.0,0.00012058,2]
[407864162,1772843432477,-204.28312793,0.00012058,2]
[407864163,1772843432487,-8103.03593831,0.00012113,2]
[407864164,1772843432496,-500.0,0.00012137,2]
[407864165,1772843432506,-9999.99,0.00012137,2]
[407864166,1772843432515,-679.0,0.00012158,2]
[407864167,1772843432524,-500.0,0.00012173,2]
[407864168,1772843432534,-150.99,0.00012179,2]
[407864169,1772843432544,-17601.39,0.00012179,2]
[407864170,1772843432553,-9999.99,0.00012179,2]
[407864171,1772843432563,-9999.99,0.00012179,2]
[407864172,1772843432578,-1187.09,0.00012179,2]
[407864173,1772843432588,-299.99,0.00012179,2]
[407864174,1772843432598,-25825.94,0.00012213,2]
[407864175,1772843432607,-1024.28,0.00012213,2]
[407864176,1772843432618,-199.01,0.00012213,2]
[407864177,1772843432627,-150.0,0.00012213,2]
[407864178,1772843432638,-360.79,0.00012226,2]
[407864179,1772843432653,-954.0,0.00012228,2]
[407864180,1772843432666,-309.6,0.00012242,2]
[407864181,1772843432676,-503.40655487,0.00012273,2]
[407864182,1772843432687,-500.0,0.00012273,2]
[407864183,1772843432697,-188.0,0.00012286,2]
[407864184,1772843432707,-1000.0,0.0001229,2]
[407864185,1772843432716,-1976.0,0.00012299,2]
[407864186,1772843432727,-298.0,0.00012323,2]
[407864187,1772843432736,-151.0,0.00012325,2]
[407864188,1772843432746,-162.0,0.00012325,2]
[407864189,1772843432755,-1483.0,0.00012349,2]
[407864190,1772843432765,-2500.0,0.00012372,2]
[407864191,1772843432775,-16178.1923,0.00012385,2]
[407864192,1772843432784,-1000.0,0.00012385,2]
[407864193,1772843432794,-555.0,0.00012385,2]
[407864194,1772843432803,-177.75620732,0.00012385,2]
[407864195,1772843432813,-2595.59986529,0.00012385,2]
[407864196,1772843432822,-4313.53735271,0.00012385,2]
[407864197,1772843432831,-1000.0,0.00012405,2]
[407864198,1772843432840,-240.10787779,0.00012407,2]
[407864199,1772843432850,-539.07997026,0.00012428,2]
[407864200,1772843432859,-1106.41192988,0.00012442,2]
[407864201,1772843432868,-151.0,0.0001247,2]
[407864202,1772843432878,-151.0,0.0001247,2]
[407864203,1772843432887,-311.73337018,0.0001247,2]
[407864204,1772843432896,-151.0,0.0001247,2]
[407864205,1772843432905,-151.0,0.0001247,2]
[407864206,1772843432915,-151.0,0.0001247,2]
[407864207,1772843432925,-151.0,0.0001247,2]
[407864208,1772843432934,-151.0,0.0001247,2]
[407864209,1772843432945,-151.0,0.0001247,2]
[407864210,1772843432957,-151.0,0.0001247,2]
[407864211,1772843432966,-151.0,0.0001247,2]
[407864212,1772843432976,-151.0,0.0001247,2]
[407864213,1772843432987,-555.0,0.00012472,2]
[407864214,1772843432996,-555.0,0.00012472,2]
[407864215,1772843433006,-555.0,0.00012472,2]
[407864216,1772843433016,-555.0,0.00012472,2]
[407864217,1772843433027,-555.0,0.00012472,2]
[407864218,1772843433037,-555.0,0.00012472,2]
[407864219,1772843433046,-500.0,0.00012473,2]
[407864220,1772843433055,-555.0,0.00012477,2]
[407864221,1772843433065,-255.0,0.00012481,2]
[407864222,1772843433074,-151.0,0.00012482,2]
[407864223,1772843433084,-151.0,0.00012482,2]
[407864224,1772843433094,-151.0,0.00012482,2]
[407864225,1772843433104,-151.0,0.00012482,2]
[407864226,1772843433113,-500.0,0.00012484,2]
[407864227,1772843433122,-500.0,0.00012484,2]
[407864228,1772843433131,-500.0,0.00012484,2]
[407864229,1772843433144,-500.0,0.00012484,2]
[407864230,1772843433155,-500.0,0.00012484,2]
[407864231,1772843433165,-500.0,0.00012484,2]
[407864232,1772843433176,-200.22094622,0.00012484,2]
[407864233,1772843433185,-500.0,0.00012484,2]
[407864234,1772843433195,-157.3930201,0.00012484,2]
[407864235,1772843433205,-500.0,0.00012484,2]
[407864236,1772843433215,-634.37807112,0.00012484,2]
[407864237,1772843433225,-1336.91403435,0.00012484,3]
[407864238,1772843433234,-795613.86677054,0.00012485,2]
[407864239,1772843433250,-201967.5237396,0.00012485,2]
[407864243,1772843439709,-13638.80000001,0.00012485,2]
[407864244,1772843439722,-596.298,0.00012485,2]
[407864245,1772843439733,-1151.525977,0.00012485,2]
[407864246,1772843439756,-1765.48484446,0.00012485,2]
[407864247,1772843439907,-518.12685528,0.00012485,2]
[407864248,1772843440113,-1247.84626296,0.00012485,2]
[407864249,1772843440147,-2179.26069336,0.00012485,2]
[407864277,1772843443340,-616.14188761,0.00012485,2]
[407864278,1772843443437,-109.33516624,0.00012485,2]
[407864283,1772843446084,-17957.9766988,0.00012485,2]
[407864284,1772843535811,500.0,8e-05,2]
[407864285,1772843540994,500.0,8e-05,2]
[407864286,1772843544322,952.73813573,8e-05,2]
[407864287,1772843579774,1563.2,6.154e-05,2]
[407864288,1772843579851,1563.2,6.478e-05,2]
[407864289,1772843579910,1563.2,6.802e-05,2]
[407864290,1772843580052,1563.2,7.126e-05,2]
[407864291,1772843580391,1563.2,7.45e-05,2]
[407864292,1772843580499,1563.2,7.774e-05,2]
[407864293,1772843580785,1563.2,8.098e-05,2]
[407864294,1772843581110,1563.2,8.422e-05,2]
[407864295,1772843581367,1563.2,8.746e-05,2]
[407864296,1772843581607,1563.2,9.07e-05,2]
[407864297,1772843581839,1563.2,9.394e-05,2]
[407864298,1772843582039,1563.2,9.718e-05,2]
[407864299,1772843582400,1563.2,0.00010041,2]
[407864300,1772843586904,157.0,0.00010331,2]
[407864301,1772843645112,157.0,0.00010331,3]
[407864303,1772843963811,-157.0,0.00010365,2]
[407864304,1772843963891,-4686.01,0.00010365,2]
[407864305,1772843969672,-313.99,0.00010365,2]
[407864306,1772843969752,-1563.2,0.00010365,2]
[407864307,1772843969834,-200.0,0.000104,2]
[407864308,1772843969922,-1279.98676939,0.00010543,2]
[407864309,1772843970004,-244.38376805,0.00010589,2]
[407864310,1772843970085,-1233.68892512,0.00010689,2]
[407864311,1772843975571,-329.51107488,0.00010689,2]
[407864312,1772843975716,-7841.18648838,0.00010865,2]
[407864313,1772844006522,157.0,0.00010365,2]
[407864314,1772844071587,157.0,0.00010365,2]
[407864315,1772844089082,-239.0,0.00010865,2]
[407864316,1772844089120,-2642.62351162,0.00010865,2]
[407864317,1772844089156,-1563.2,0.00011013,2]
[407864318,1772844089343,-796.36297676,0.00011053,2]
[407864319,1772844089378,155.5,8.786e-05,2]
[407864320,1772844089458,155.5,9.884e-05,2]
[407864321,1772844092005,-155.5,0.00010983,2]
[407864322,1772844092046,-1203.63702324,0.00011053,2]
[407864323,1772844092086,-1123.22595352,0.00011084,2]
[407864324,1772844092204,-4724.28404648,0.00011084,2]
[407864325,1772844098152,-311.0,0.00011084,2]
[407864326,1772844098190,-1500.0,0.00011152,2]
[407864327,1772844098231,-1200.0,0.00011239,2]
[407864328,1772844098273,-150.0,0.0001124,2]
[407864329,1772844098312,-1563.2,0.00011337,2]
[407864330,1772844098350,-244.38376805,0.00011387,2]
[407864331,1772844098541,-62.8424639,0.00011401,2]
[407864332,1772844125378,157.0,0.00010365,2]
[407864333,1772844140857,500.0,8e-05,2]
[407864334,1772844141033,500.0,8e-05,2]
[407864335,1772844141875,880.5920418,8e-05,2]
[407864337,1772844148088,500.0,8e-05,2]
[407864338,1772844185072,157.0,0.00010365,2]
[407864339,1772844225540,-835.623854,0.00011245,2]
[407864340,1772844225568,-420.03635119,0.00011301,2]
[407864341,1772844225596,-1622.65184116,0.00011302,2]
[407864342,1772844225625,-200.0,0.00011365,2]
[407864343,1772844225653,-150.0,0.00011401,2]
[407864344,1772844231264,164.433249,0.00011268,2]
[407864345,1772844240688,-5000.0,0.00011402,2]
[407864346,1772844240860,-154.81,0.00011402,2]
[407864347,1772844240889,-238.0,0.00011419,2]
[407864348,1772844240918,-500.0,0.0001142,2]
[407864349,1772844240947,-500.0,0.0001142,2]
[407864350,1772844240976,-500.0,0.0001142,2]
[407864351,1772844241004,-500.0,0.0001142,2]
[407864352,1772844241033,-500.0,0.0001142,2]
[407864353,1772844241062,-500.0,0.0001142,2]
[407864354,1772844241090,-203.223714,0.0001142,2]
[407864355,1772844241117,-344.10422004,0.0001142,2]
[407864356,1772844241145,-473.11746355,0.0001142,2]
[407864357,1772844241174,-500.0,0.0001142,2]
[407864358,1772844241319,-500.0,0.0001142,2]
[407864359,1772844241347,-500.0,0.0001142,2]
[407864360,1772844241377,-500.0,0.0001142,2]
[407864361,1772844241405,-500.0,0.0001142,2]
[407864362,1772844241433,-473.57406555,0.0001142,2]
[407864363,1772844241460,-500.0,0.0001142,2]
[407864364,1772844241487,-500.0,0.0001142,2]
[407864365,1772844241513,-500.0,0.0001142,2]
[407864366,1772844241539,-769.3417456,0.0001142,2]
[407864367,1772844241894,-604.37882443,0.0001142,2]
[407864368,1772844241922,-500.0,0.0001142,2]
[407864369,1772844241949,-502.68587184,0.000115,2]
[407864370,1772844241976,-250.0,0.00011524,2]
[407864371,1772844242004,-150.99,0.00011524,2]
[407864372,1772844242031,-420.03635119,0.00011577,2]
[407864373,1772844242060,-1563.2,0.00011661,2]
[407864374,1772844242088,-154.82119296,0.00011676,2]
[407864375,1772844242115,-578.20924308,0.00011779,2]
[407864376,1772844242234,-2417.58,0.00011779,2]
[407864377,1772844242371,-4835.16,0.00011779,2]
[407864378,1772844243013,-329.69,0.00011779,2]
[407864379,1772844243024,-420.03635119,0.00011852,2]
[407864380,1772844243036,-3225.47937847,0.00011861,2]
[407864381,1772844243725,-1801.09945075,0.00011861,2]
[407864382,1772844243753,-1397.8110985,0.00011861,2]
[407864383,1772844243797,-3602.1889015,0.00011861,2]
[407864384,1772844243832,-5000.0,0.00011861,2]
[407864385,1772844243875,-0.01,0.00011861,2]
[407864386,1772844243954,-0.03,0.00011861,2]
[407864387,1772844243979,-9999.95,0.00011861,2]
[407864388,1772844246893,-157.0,0.00011402,2]
[407864389,1772844246924,-500.0,0.0001141,2]
[407864390,1772844246952,-642.97646691,0.00011453,2]
[407864391,1772844246982,-2971.02,0.00011861,2]
[407864392,1772844247011,-300.34586323,0.0001188,2]
[407864393,1772844247041,-257.32533972,0.000119,4]
[407864394,1772844247139,-342.67466028,0.000119,4]
[407864395,1772844247167,-250.0,0.00011952,2]
[407864396,1772844247195,-3814.66067944,0.00011952,2]
[407864397,1772844247288,-1185.33932056,0.00011952,2]
[407864398,1772844247318,-3506.115826,0.00011952,2]
[407864399,1772844247347,-267.03349428,0.00011952,2]
[407864400,1772844247444,-83.03271832,0.00011952,2]
[407864401,1772844247474,-500.0,0.00011952,2]
[407864402,1772844247505,-1563.2,0.00011985,2]
[407864403,1772844247534,-1000.0,0.00012004,2]
[407864404,1772844247561,-1000.0,0.00012028,2]
[407864405,1772844247588,-707.54456336,0.00012034,2]
[407864406,1772844248042,-292.45543664,0.00012034,2]
[407864407,1772844248051,-611.04669916,0.00012042,2]
[407864408,1772844248066,-388.95330084,0.00012042,2]
[407864409,1772844248075,-611.04669916,0.00012053,2]
[407864410,1772844451133,-209.99842517,0.00011267,2]
[407864411,1772844452127,-7.38157483,0.00011267,2]
[407864412,1772844452148,-462.65097117,0.0001142,2]
[407864414,1772844557395,-2679.16,0.00011195,2]
[407864415,1772844557419,-259.47,0.00011205,2]
[407864416,1772844562828,169.28754758,0.00011105,2]
[407864417,1772844562858,-9.15154091,0.0001142,2]
[407864418,1772844562889,-200.0,0.00011473,2]
[407864419,1772844562919,-1852.42,0.00011474,2]
[407864420,1772844562946,-1900.0,0.000119,4]
[407864421,1772844562973,-500.0,0.00011953,2]
[407864422,1772844563001,-388.95330084,0.00012053,2]
[407864423,1772844563028,-141.9603165,0.00012053,3]
[407864424,1772844563198,-15.0396835,0.00012053,3]
[407864425,1772844563257,-500.0,0.00012055,2]
[407864426,1772844563284,-250.0,0.00012057,2]
[407864427,1772844563311,-1000.0,0.0001206,2]
[407864428,1772844563337,-1000.0,0.00012077,2]
[407864429,1772844563366,-155.5,0.00012081,2]
[407864430,1772844563392,-1000.0,0.00012097,2]
[407864431,1772844563420,-300.0,0.00012103,2]
[407864432,1772844563449,-589.01,0.00012104,2]
[407864433,1772844563533,-410.99,0.00012104,2]
[407864434,1772844563560,-725.19273264,0.0001216,2]
[407864435,1772844563674,-1000.01,0.00012166,2]
[407864436,1772844564181,-2000.02,0.00012166,2]
[407864437,1772844564303,-5138.60453472,0.00012166,2]
[407864438,1772844564391,-861.36546528,0.00012166,2]
[407864439,1772844564400,-151.0,0.00012166,2]
[407864440,1772844564409,-693.3919763,0.00012166,2]
[407864441,1772844564418,-2500.0,0.0001217,2]
[407864442,1772844564427,-1000.0,0.00012172,2]
[407864443,1772844564436,-1200.0,0.00012172,2]
[407864444,1772844564448,-300.0,0.00012172,2]
[407864445,1772844564457,-150.0,0.00012172,2]
[407864446,1772844564466,-311.2601902,0.00012173,2]
[407864447,1772844564475,-1832.98236822,0.00012173,2]
[407864448,1772844564739,-7781.49929227,0.00012173,2]
[407864449,1772844564748,-218.49070773,0.00012173,2]
[407864450,1772844565734,-10000.01,0.00012173,2]
[407864451,1772844584049,-500.0,0.00011953,2]
[407864452,1772844584078,-1000.0,0.00012151,2]
[407864453,1772844584106,-1000.0,0.00012166,2]
[407864454,1772844584136,-1367.71224239,0.00012173,2]
[407864455,1772844584207,-2264.58551522,0.00012173,2]
[407864456,1772844592924,-151.0,0.00012221,2]
[407864457,1772844592953,-719.04747942,0.00012221,2]
[407864458,1772844592980,-1000.0,0.0001224,2]
[407864459,1772844593007,-1000.0,0.00012249,2]
[407864460,1772844593034,-1000.0,0.00012251,2]
[407864461,1772844593060,-150.0,0.00012261,2]
[407864462,1772844593087,-155.0,0.00012262,2]
[407864463,1772844593115,-500.0,0.00012263,2]
[407864464,1772844593266,-649.91504116,0.00012263,2]
[407864465,1772844595990,-778.47243001,0.00012263,2]
[407864466,1772844596018,-721.12765535,0.00012263,2]
[407864467,1772844596046,-500.0,0.00012263,2]
[407864468,1772844596075,-151.0,0.00012263,2]
[407864469,1772844596102,-500.0,0.00012263,2]
[407864470,1772844596132,-151.0,0.00012263,2]
[407864471,1772844596160,-500.0,0.00012263,2]
[407864472,1772844596189,-151.0,0.00012263,2]
[407864473,1772844596219,-500.0,0.00012263,2]
[407864474,1772844596248,-151.0,0.00012263,2]
[407864475,1772844596478,-1792.80982928,0.00012263,2]
[407864476,1772844598952,-707.19017072,0.00012263,2]
[407864477,1772844598980,-500.0,0.00012263,2]
[407864478,1772844599009,-151.0,0.00012263,2]
[407864479,1772844599036,-2500.0,0.00012263,2]
[407864480,1772844599063,-500.0,0.00012263,2]
[407864481,1772844599091,-151.0,0.00012263,2]
[407864482,1772844599118,-250.0,0.00012263,2]